bitfinex-derivatives/quotes_ETHF0:USTF0_20250824
["timestamp","ask_amount","ask_price","bid_price","bid_amount"]
[1756063938651,0.8551,4917.0,4916.4,0.4069]
[1756063938852,0.8551,4917.6,4916.4,0.117]
[1756063939050,0.5977,4917.4,4916.5,19.677]
[1756063939352,1.01675,4918.9,4915.8,0.40694]
[1756063939547,29.274,4920.1,4916.3,0.117]
[1756063939548,0.3271,4917.8,4916.3,0.117]
[1756063939745,0.8551,4920.3,4917.6,0.52379]
[1756063940056,0.8551,4918.7,4917.8,0.40678]
[1756063940253,0.8551,4918.7,4917.6,19.815]
[1756063940450,0.40678,4917.8,4916.8,0.3816]
[1756063940656,0.4068,4917.7,4916.8,0.3816]
[1756063940851,0.8551,4917.6,4916.9,19.708]
[1756063941150,0.2706,4917.6,4917.3,0.40682]
[1756063941450,0.2706,4917.6,4916.3,0.0203]
[1756063941451,0.528,4916.8,4915.6,0.3816]
[1756063942250,0.2574,4916.8,4915.8,0.2646]
[1756063942549,0.528,4918.1,4917.1,0.117]
[1756063942742,0.40676,4918.0,4917.2,19.715]
[1756063942948,0.40676,4918.0,4916.5,29.279]
[1756063942949,0.8551,4917.9,4916.5,29.396]
[1756063943144,0.8551,4917.9,4917.3,0.40681]
[1756063943343,0.2574,4918.4,4917.3,0.40681]
[1756063943645,0.2574,4918.4,4916.5,29.279]
[1756063943646,0.528,4919.0,4917.9,0.3816]
[1756063943842,0.2574,4917.8,4915.1,0.0203]
[1756063944050,0.4069,4916.4,4915.5,0.117]
[1756063944256,0.8551,4916.5,4915.6,0.40696]
[1756063944952,20.33365,4919.2,4916.1,0.3816]
[1756063944953,0.3271,4917.0,4916.1,0.3816]
[1756063945352,0.8551,4917.6,4916.8,0.40686]
[1756063945546,0.8551,4917.6,4916.8,0.52386]
[1756063945751,0.2706,4918.1,4917.9,0.40677]
[1756063945950,0.2706,4918.1,4916.9,2.68094347]
[1756063945951,0.2706,4918.7,4918.1,0.117]
[1756063946145,1.26173,4919.7,4918.1,0.3816]
[1756063946345,1.26173,4919.7,4918.0,19.749]
[1756063946346,0.8551,4919.7,4918.3,0.40674]
[1756063946547,0.8551,4919.7,4918.5,0.117]
[1756063946751,0.8551,4919.7,4918.5,0.52372]
[1756063947050,0.2574,4919.6,4918.7,0.4067]
[1756063947259,0.2574,4919.6,4918.7,0.2646]
[1756063947460,0.2574,4919.6,4918.8,20.15669]
[1756063947649,0.5416,4920.3,4918.1,0.14872395]
[1756063947851,0.2815,4920.0,4918.2,0.40675]
[1756063948052,0.88,4920.1,4918.8,0.1107]
[1756063948252,0.03539558,4920.4,4920.2,0.2698]
[1756063948458,0.03539558,4920.4,4920.3,20.72507]
[1756063948659,0.03539558,4920.4,4920.3,20.3185]
[1756063948959,0.03539558,4920.4,4920.3,20.3225]
[1756063949462,0.03539558,4920.4,4920.3,26.96464965]
[1756063949961,0.03539558,4920.4,4920.3,22.96464965]
[1756063950155,0.5416,4921.9,4920.3,26.96464965]
[1756063950360,0.5416,4921.9,4920.9,0.40652]
[1756063950761,0.40647,4921.6,4920.8,0.3805]
[1756063950962,0.94805,4921.9,4920.8,0.3805]
[1756063951163,0.5416,4921.9,4920.9,0.40652]
[1756063951361,0.5416,4921.9,4920.8,0.3805]
[1756063951362,0.2815,4921.9,4920.8,0.3805]
[1756063951555,0.0203,4922.9,4920.2,0.1096]
[1756063951556,0.40648,4921.4,4920.2,0.1096]
[1756063951759,20.32268,4921.9,4919.0,0.1096]
[1756063952063,0.6199,4919.6,4918.5,0.16700354]
[1756063952263,0.2815,4919.4,4918.6,0.1671314]
[1756063952461,0.2815,4919.2,4918.2,2.63005957]
[1756063952756,0.88,4918.4,4917.6,19.96]
[1756063952957,0.88,4918.4,4917.6,20.36679]
[1756063953462,0.3384,4919.1,4917.6,19.958]
[1756063953663,0.88,4919.1,4917.8,0.1096]
[1756063954171,0.40668,4919.0,4917.8,0.1096]
[1756063954463,0.40669,4919.0,4917.8,0.1096]
[1756063954659,0.3384,4919.7,4918.3,0.1096]
[1756063954864,0.40666,4919.3,4918.5,0.3794]
[1756063955060,0.3384,4919.7,4918.6,0.40671]
[1756063955258,0.3384,4919.7,4918.6,2.65990656]
[1756063955457,0.40665,4919.4,4918.6,2.65990656]
[1756063955760,0.74503,4919.7,4918.6,3.06661656]
[1756063956061,0.2601,4919.8,4918.9,0.1096]
[1756063956261,0.40663,4919.6,4918.9,0.1096]
[1756063956559,0.40663,4919.7,4919.0,19.942]
[1756063956859,0.5416,4919.6,4918.6,2.65990656]
[1756063957055,0.2815,4918.2,4917.8,19.943]
[1756063957258,0.88,4918.0,4917.8,19.943]
[1756063957452,1.28677,4917.9,4917.8,19.943]
[1756063957658,0.4068,4917.6,4917.1,0.1096]
[1756063957857,0.5416,4917.5,4917.0,19.944]
[1756063958053,0.5416,4917.2,4916.1,0.14655461]
[1756063958357,0.5416,4917.9,4916.4,0.2698]
[1756063958558,0.94832,4918.6,4917.2,0.3794]
[1756063958759,0.5416,4919.2,4917.7,0.3794]
[1756063958960,0.40678,4917.9,4917.7,0.1096]
[1756063959168,0.2601,4918.1,4917.3,29.284]
[1756063959363,0.88,4917.7,4917.4,19.966]
[1756063959555,0.5416,4919.2,4917.6,0.40679]
[1756063959761,0.5416,4919.2,4917.7,0.2698]
[1756063960063,0.5416,4919.2,4918.2,0.3794]
[1756063960368,0.40667,4919.1,4918.2,0.3794]
[1756063960562,0.5416,4919.2,4918.2,0.78614]
[1756063960763,0.40667,4919.1,4918.2,0.3794]
[1756063961164,0.5416,4919.2,4918.2,0.3794]
[1756063961465,0.40673,4918.5,4918.3,19.968]
[1756063961766,0.5416,4917.4,4917.3,29.284]
[1756063961970,0.5416,4917.4,4917.3,49.42211232]
[1756063962161,0.3384,4918.4,4917.3,49.42211232]
[1756063962361,0.40671,4918.7,4917.6,0.4068]
[1756063962563,0.4925729,4918.6,4917.5,0.3794]
[1756063962768,0.40675,4918.2,4917.5,0.3794]
[1756063963068,0.88,4917.8,4917.7,2.64764679]
[1756063963262,1.28679,4917.7,4917.6,19.981]
[1756063963662,0.40685,4917.0,4916.3,29.286]
[1756063963864,0.2601,4917.1,4916.4,20.16139941]
[1756063964168,0.88,4915.7,4915.1,0.1096]
[1756063964369,0.5416,4915.7,4915.4,0.2617]
[1756063964568,0.2601,4915.7,4915.5,0.2617]
[1756063964762,0.40702,4915.0,4914.2,0.2617]
[1756063964959,1.01745,4915.5,4914.3,20.036]
[1756063965163,0.2601,4915.2,4914.1,0.09360724]
[1756063965362,0.66717,4914.3,4914.2,20.043]
[1756063965568,0.5416,4914.3,4914.2,20.043]
[1756063965766,0.2815,4915.0,4914.2,20.043]
[1756063966675,0.2601,4915.4,4914.3,22.64757811]
[1756063966863,0.6199,4915.6,4914.6,0.40705]
[1756063967067,0.2601,4915.5,4914.4,0.2617]
[1756063967473,0.2601,4915.5,4914.5,20.032]
[1756063967474,0.66708,4915.5,4914.5,20.032]
[1756063967771,0.2601,4915.5,4914.4,0.2617]
[1756063967965,0.2601,4915.5,4914.5,0.40705]
[1756063968169,0.2601,4915.5,4914.6,20.032]
[1756063968365,0.2815,4915.4,4914.4,0.2617]
[1756063968573,0.88,4915.0,4914.1,0.09360724]
[1756063968773,0.40705,4914.6,4914.1,0.09360724]
[1756063968969,0.88,4914.3,4914.2,20.021]
[1756063969276,0.0203,4916.1,4914.2,20.021]
[1756063969277,0.40706,4914.5,4914.2,20.026]
[1756063969479,1.28707,4914.3,4914.2,20.026]
[1756063969772,0.88,4914.2,4914.1,0.09360724]
[1756063970376,4.88,4914.2,4914.1,0.0889378]
[1756063970673,4.88,4914.2,4912.4,29.5557]
[1756063970674,0.2601,4912.7,4912.4,29.5557]
[1756063970872,0.2601,4912.7,4912.5,20.028]
[1756063971073,0.2601,4912.5,4912.4,29.294]
[1756063971269,0.0203,4912.5,4910.1,0.2617]
[1756063971474,0.2601,4912.0,4910.3,0.2617]
[1756063971674,0.2601,4912.0,4910.5,0.2617]
[1756063971875,0.40729,4911.7,4910.5,0.2617]
[1756063972075,0.40729,4911.7,4910.2,20.175]
[1756063972076,4.71066129,4911.4,4910.2,9.15402184]
[1756063972374,0.2601,4911.2,4910.6,2.61217972]
[1756063972571,0.73349002,4911.1,4910.3,22.78217972]
[1756063972771,3.56605564,4910.5,4910.3,20.17]
[1756063972966,0.70909002,4910.4,4910.3,20.17]
[1756063973173,0.70909002,4910.4,4909.9,0.14257008]
[1756063973372,3.46085564,4910.5,4910.3,2.59988025]
[1756063973571,0.2601,4911.3,4910.0,20.172]
[1756063973572,0.2601,4911.3,4910.0,26.77188025]
[1756063973781,0.2601,4911.3,4910.1,22.76588025]
[1756063974074,0.2601,4911.3,4910.1,20.166]
[1756063974381,0.2815,4911.0,4910.1,20.166]
[1756063974774,0.2815,4911.0,4909.9,0.40743]
[1756063974976,0.2601,4910.8,4910.0,20.153]
[1756063975174,0.2601,4910.3,4910.0,2.59191128]
[1756063975479,0.2601,4910.8,4910.0,20.59242]
[1756063975679,0.2601,4910.8,4910.0,0.40742]
[1756063975873,0.2601,4910.8,4910.1,22.79891128]
[1756063976472,0.40731,4911.4,4910.2,20.2]
[1756063976668,0.2601,4911.2,4910.1,2.59191128]
[1756063976873,0.2601,4911.0,4910.2,20.21]
[1756063977173,0.2601,4911.0,4909.8,0.40744]
[1756063977474,0.2601,4910.8,4910.0,0.40743]
[1756063977977,0.2601,4910.8,4910.1,2.66252265]
[1756063978173,0.2601,4910.8,4910.6,0.0917]
[1756063978373,0.298,4911.3,4911.0,0.0917]
[1756063978575,0.298,4911.4,4911.2,0.0917]
[1756063979080,0.298,4911.3,4911.2,0.0917]
[1756063979280,0.308,4911.9,4911.1,20.225]
[1756063979577,0.308,4911.5,4911.1,20.225]
[1756063979782,0.298,4911.4,4911.1,20.225]
[1756063979968,0.298,4911.4,4911.2,0.0917]
[1756063980175,0.606,4912.1,4911.4,0.4073]
[1756063980370,0.40729,4911.7,4911.2,2.62683589]
[1756063980570,0.6473,4911.8,4911.1,20.225]
[1756063980877,0.606,4911.4,4911.1,20.225]
[1756063981075,0.606,4911.4,4910.0,0.0887]
[1756063981076,0.308,4911.1,4910.0,0.0917]
[1756063981279,0.308,4911.1,4909.5,0.14604067]
[1756063981280,0.9553,4910.6,4909.5,0.14604067]
[1756063981479,0.298,4910.5,4909.6,20.237]
[1756063981675,0.9553,4910.7,4909.6,2.67808884]
[1756063981880,0.0203,4911.5,4908.8,0.0917]
[1756063981881,0.9553,4910.5,4909.2,49.533]
[1756063982079,0.606,4910.0,4909.2,49.533]
[1756063982377,0.4074,4910.4,4909.7,0.0917]
[1756063982578,0.3493,4910.5,4909.2,49.533]
[1756063982882,0.298,4910.0,4909.2,49.6247]
[1756063983078,0.40742,4910.2,4909.3,2.62484753]
[1756063983274,0.9553,4910.0,4909.2,49.6247]
[1756063983478,0.308,4910.7,4909.8,0.40744]
[1756063983687,0.308,4910.7,4909.7,0.0917]
[1756063983688,0.4073,4911.6,4910.4,0.40739]
[1756063983881,0.3493,4911.2,4909.9,2.62484753]
[1756063984073,1.42641963,4911.8,4909.2,29.3]
[1756063984274,0.6573,4910.4,4909.3,20.3]
[1756063984577,0.40744,4909.9,4909.3,22.98338279]
[1756063984774,0.40742,4910.2,4909.3,22.98338279]
[1756063984980,0.59567308,4910.1,4909.3,2.68338279]
[1756063985180,0.9553,4909.3,4909.2,20.297]
[1756063985386,1.5512356,4909.3,4909.2,20.297]
[1756063985678,0.40759,4908.0,4907.8,0.0917]
[1756063985883,4.5959356,4909.3,4906.2,0.0917]
[1756063985884,0.40764,4907.5,4906.2,0.0917]
[1756063986075,0.5959356,4907.4,4906.7,0.0203]
[1756063986278,0.5959356,4907.3,4906.6,0.1804]
[1756063986477,0.298,4907.7,4906.8,0.0917]
[1756063986673,0.298,4907.7,4906.8,0.12716097]
[1756063987073,0.298,4907.7,4907.0,0.0203]
[1756063987285,0.298,4907.7,4907.3,0.40765]
[1756063987485,0.308,4908.4,4907.7,0.40761]
[1756063987782,0.298,4909.9,4908.6,0.42784]
[1756063988086,0.40744,4909.8,4908.7,2.84871143]
[1756063988379,0.298,4909.7,4908.8,20.316]
[1756063988585,0.0203,4911.1,4908.8,20.316]
[1756063988586,0.6573,4911.2,4910.4,0.0203]
[1756063988886,0.298,4911.3,4910.5,20.4247]
[1756063989077,0.298,4911.3,4910.5,23.11894079]
[1756063989381,0.298,4911.3,4910.5,20.4247]
[1756063989582,0.298,4911.9,4910.9,0.0917]
[1756063989886,0.606,4911.6,4910.6,2.69424079]
[1756063990087,0.298,4910.3,4909.3,0.0917]
[1756063990277,0.40742,4910.1,4909.3,20.347]
[1756063990582,0.0203,4910.1,4909.0,2.59852432]
[1756063990884,0.0203,4908.1,4906.5,20.348]
[1756063991088,0.40774,4906.3,4905.1,29.336]
[1756063991287,0.298,4906.4,4905.3,0.2745]
[1756063991586,0.606,4907.0,4905.9,0.2745]
[1756063991793,0.606,4907.0,4906.0,0.37276]
[1756063991979,0.606,4907.0,4906.2,0.40774]
[1756063992184,0.298,4907.0,4906.2,20.38]
[1756063992486,0.606,4907.8,4907.0,0.40767]
[1756063992689,0.298,4907.8,4906.8,0.2745]
[1756063992987,0.606,4908.4,4907.5,0.40763]
[1756063993193,0.3493,4908.7,4907.7,0.2745]
[1756063993495,0.298,4908.8,4907.7,0.2745]
[1756063993787,0.298,4908.8,4907.9,0.2745]
[1756063993987,0.298,4908.8,4908.1,0.40758]
[1756063994189,1.01837,4911.1,4908.1,0.40758]
[1756063994190,0.298,4909.5,4909.0,0.40751]
[1756063994388,0.298,4910.2,4909.5,0.2712]
[1756063994581,0.308,4910.6,4909.7,0.5457]
[1756063994889,0.298,4910.9,4909.9,0.2712]
[1756063995082,0.308,4910.8,4909.9,0.2712]
[1756063995283,0.298,4910.9,4910.4,0.40739]
[1756063995480,0.308,4912.0,4910.2,0.5457]
[1756063995691,0.298,4912.7,4911.4,0.5457]
[1756063995989,0.298,4912.7,4911.5,20.401]
[1756063996185,0.308,4912.2,4911.5,20.401]
[1756063996388,0.308,4912.6,4911.5,20.401]
[1756063996581,0.9553,4912.6,4911.5,21.0795]
[1756063996786,0.9553,4912.6,4910.8,0.0887]
[1756063996787,0.308,4912.4,4910.8,0.2712]
[1756063996988,0.9553,4911.9,4910.8,0.2712]
[1756063997292,0.308,4911.4,4910.6,49.738]
[1756063997589,0.606,4912.2,4911.4,0.5457]
[1756063997785,0.3493,4912.1,4911.4,0.2745]
[1756063998095,0.9553,4912.5,4910.6,49.738]
[1756063998384,1.01802,4912.7,4909.2,0.2712]
[1756063998385,0.298,4910.4,4909.2,0.2712]
[1756063998584,0.298,4910.9,4910.1,0.5457]
[1756063998788,0.53442615,4910.8,4910.2,0.5457]
[1756063998985,0.53442615,4910.8,4909.3,20.403]
[1756063998986,0.53442615,4910.7,4910.4,0.2712]
[1756063999184,0.83242615,4910.6,4910.5,0.2712]
[1756063999385,0.83242615,4910.6,4910.1,20.412]
[1756063999386,0.40739,4910.4,4910.2,2.62593379]
[1756063999587,0.40739,4910.4,4909.4,2.62593379]
[1756063999588,0.53442615,4910.3,4908.8,0.2745]
[1756063999786,1.14042615,4910.2,4908.9,0.0887]
[1756064000086,0.53442615,4910.1,4909.5,2.63479166]
[1756064000280,0.298,4909.9,4909.5,0.2712]
[1756064000482,0.53442615,4909.8,4909.6,4.2712]
[1756064000681,0.40736,4910.8,4909.9,0.2745]
[1756064000886,0.4074,4910.4,4909.8,0.5457]
[1756064001089,0.298,4910.2,4909.1,50.2967]
[1756064001289,0.308,4910.6,4908.2,0.5457]
[1756064001290,0.4075,4909.1,4908.2,0.5457]
[1756064001585,0.52039129,4909.0,4908.2,20.9497]
[1756064001779,0.52039129,4909.0,4908.3,2.61887777]
[1756064001780,0.52039129,4908.9,4908.3,2.61887777]
[1756064001984,0.52040146,4908.8,4908.2,20.9497]
[1756064002180,0.52040146,4908.7,4908.5,0.5457]
[1756064002381,0.52040146,4908.6,4908.3,2.72281627]
[1756064002683,0.40744,4909.9,4908.8,0.2712]
[1756064002880,0.40751,4909.0,4908.8,0.2712]
[1756064003083,0.81835091,4908.9,4908.8,0.5457]
[1756064003285,0.92787091,4908.9,4908.8,0.5457]
[1756064003488,0.298,4908.8,4908.7,20.391]
[1756064003689,0.81835091,4908.8,4908.7,20.6622]
[1756064004285,0.51839931,4908.8,4908.7,20.9367]
[1756064004689,0.50555615,4908.8,4908.7,20.9367]
[1756064005093,0.308,4909.9,4908.7,27.64927076]
[1756064005295,0.6573,4909.9,4908.7,23.28607076]
[1756064005589,0.298,4909.1,4908.8,0.2712]
[1756064005796,0.298,4909.1,4908.7,20.391]
[1756064006092,0.40748,4909.5,4908.8,3.16957076]
[1756064006291,0.298,4909.9,4909.0,0.5457]
[1756064006499,0.606,4910.6,4909.5,0.2712]
[1756064006791,0.4074,4910.4,4909.8,0.2712]
[1756064006988,0.298,4910.6,4909.8,0.67864]
[1756064007189,0.298,4910.6,4909.7,0.2745]
[1756064007190,0.298,4910.6,4909.9,3.02004398]
[1756064007389,0.308,4911.3,4910.2,0.2745]
[1756064007390,0.40733,4911.2,4910.2,0.2745]
[1756064007587,0.606,4911.3,4910.5,0.40739]
[1756064007890,0.298,4911.3,4910.7,0.5424]
[1756064008089,0.2879,4911.9,4910.8,0.5424]
[1756064008284,0.2879,4910.9,4910.8,2.68211141]
[1756064008484,0.9279,4910.9,4910.2,0.2713]
[1756064008684,0.2879,4910.2,4910.0,20.372]
[1756064008892,0.2879,4910.2,4910.1,0.5424]
[1756064009188,0.3238,4911.0,4910.1,7.1512394]
[1756064009189,0.40735,4911.0,4910.1,7.1512394]
[1756064009388,1.01818,4911.9,4910.0,20.372]
[1756064009389,0.40742,4910.1,4910.0,20.372]
[1756064009594,0.2879,4910.1,4910.0,20.6431]
[1756064009793,0.3238,4910.6,4909.4,0.2713]
[1756064009990,0.69539,4909.3,4909.2,20.363]
[1756064010188,1.33539,4909.3,4909.2,20.363]
[1756064010383,0.2879,4909.3,4909.2,20.363]
[1756064011498,0.9279,4909.3,4909.2,20.363]
[1756064011794,1.0186,4909.9,4908.6,0.2713]
[1756064011990,0.69544,4908.8,4908.7,0.2713]
[1756064012193,0.69544,4908.8,4908.7,2.90195452]
[1756064012391,0.69544,4908.8,4908.6,0.2713]
[1756064012588,1.01899,4908.0,4907.3,0.2713]
[1756064012790,0.40767,4907.2,4906.8,0.541]
[1756064012986,0.2879,4907.2,4906.9,0.2697]
[1756064013197,0.2879,4907.2,4906.6,18.87865452]
[1756064013198,0.3238,4908.4,4907.5,0.2697]
[1756064013490,0.2879,4908.5,4907.7,0.0203]
[1756064013692,0.40753,4908.8,4907.9,0.2713]
[1756064013998,0.40751,4909.0,4908.3,0.541]
[1756064014187,0.40746,4909.6,4908.5,0.2713]
[1756064014394,0.2879,4909.7,4908.9,0.2713]
[1756064014595,0.2879,4910.4,4909.2,0.2713]
[1756064014798,0.40741,4910.3,4909.3,0.2713]
[1756064014998,1.01822,4911.7,4909.3,0.2713]
[1756064014999,0.69524,4911.1,4909.4,0.0203]
[1756064015194,0.2879,4911.1,4910.0,0.40743]
[1756064015399,0.2879,4911.1,4910.2,0.2713]
[1756064015593,0.3162,4911.5,4909.3,0.2713]
[1756064015594,0.2879,4910.1,4909.3,0.2713]
[1756064015803,0.40749,4909.3,4908.6,0.2713]
[1756064016097,0.0685,4907.7,4905.8,0.2999]
[1756064016298,0.0685,4907.7,4905.9,0.0203]
[1756064016489,0.4076,4908.0,4906.1,0.6003]
[1756064016695,0.0685,4908.4,4906.1,0.6003]
[1756064016696,0.0685,4908.4,4906.1,0.40775]
[1756064016903,0.40756,4908.4,4906.9,0.40768]
[1756064017195,0.40758,4908.2,4906.5,0.42802]
[1756064017395,0.40755,4908.6,4907.2,0.2999]
[1756064017598,0.47602,4908.9,4907.3,0.40765]
[1756064017896,0.40754,4908.7,4907.4,0.6003]
[1756064018199,0.0685,4909.6,4908.0,0.3403]
[1756064018397,0.0685,4909.6,4908.3,0.6402]
[1756064018697,0.40749,4909.3,4908.4,0.6003]
[1756064018903,0.40752,4909.0,4908.5,0.2999]
[1756064019101,0.47604,4908.7,4908.6,0.2999]
[1756064019400,0.40756,4908.5,4907.9,0.2999]
[1756064019597,0.40759,4908.1,4907.8,20.569]
[1756064019791,20.3709,4910.2,4908.0,0.2999]
[1756064019792,0.40758,4908.2,4908.0,0.2999]
[1756064019996,1.01873,4909.3,4907.3,0.2999]
[1756064019997,0.0685,4907.4,4907.3,0.2999]
[1756064020196,0.0685,4907.2,4907.0,0.2999]
[1756064020395,0.40763,4907.6,4907.1,0.2999]
[1756064020601,0.40763,4907.6,4907.0,0.2999]
[1756064020799,1.01883,4908.8,4198.0,0.02]
[1756064020800,0.40766,4907.2,4906.0,0.3004]
[1756064020999,0.0685,4907.5,4906.0,0.3004]
[1756064021000,0.0685,4907.5,4906.3,0.40773]
[1756064021204,0.40764,4907.4,4906.5,0.2999]
[1756064021401,0.40762,4907.7,4906.6,20.619]
[1756064021605,0.40764,4907.5,4906.7,0.6003]
[1756064021806,0.0685,4908.1,4906.8,0.2999]
[1756064021995,0.4077,4906.8,4906.5,0.2999]
[1756064022200,0.0685,4906.7,4906.5,0.2999]
[1756064022404,0.0685,4906.6,4905.8,0.3403]
[1756064022606,0.40774,4906.3,4905.8,0.3403]
[1756064022903,0.40774,4906.3,4906.2,0.2999]
[1756064023108,0.0685,4907.8,4905.8,0.6402]
[1756064023302,0.40776,4906.0,4905.9,0.2999]
[1756064023511,0.40774,4906.3,4906.0,0.3004]
[1756064023802,0.40774,4906.3,4900.4,3.60917057]
[1756064023803,0.40776,4906.0,4905.7,0.9406]
[1756064024102,1.08767,4907.2,4905.7,0.2999]
[1756064024103,0.0685,4907.2,4905.7,0.2999]
[1756064024402,0.0685,4907.2,4905.8,2.66291723]
[1756064024594,0.0685,4907.2,4906.1,0.6003]
[1756064024800,0.40768,4907.1,4906.2,0.2999]
[1756064025003,0.4077,4906.7,4906.2,0.2999]
[1756064025209,0.40772,4906.5,4906.3,0.3004]
[1756064025402,0.40775,4906.2,4905.6,0.6003]
[1756064025602,0.40768,4907.0,4906.1,0.6003]
[1756064025901,0.0685,4907.2,4906.2,0.2999]
[1756064026103,0.40779,4905.7,4905.5,2.69447408]
[1756064026300,0.40778,4905.8,4905.0,0.2999]
[1756064026494,0.0685,4906.1,4905.0,0.2999]
[1756064026700,0.0685,4906.1,4904.2,0.131365]
[1756064026701,0.40782,4905.4,4904.2,0.131365]
[1756064027002,1.01942,4906.0,4904.5,0.2999]
[1756064027203,0.40788,4904.6,4904.4,2.62887518]
[1756064027409,0.40788,4904.6,4903.5,0.3403]
[1756064027410,0.0685,4904.3,4903.3,0.2999]
[1756064027612,0.0685,4904.2,4903.3,0.72968303]
[1756064027911,0.0685,4904.6,4903.3,1.04868]
[1756064028105,0.4079,4904.3,4903.3,0.6407]
[1756064028306,0.0685,4904.2,4903.3,0.6407]
[1756064028705,0.40788,4904.7,4904.0,0.31135689]
[1756064028906,0.0685,4904.9,4904.0,0.31135689]
[1756064029310,0.40787,4904.7,4904.0,0.31135689]
[1756064029814,0.0685,4904.9,4904.0,0.31135689]
[1756064030315,0.40783,4905.2,4904.2,3.27147949]
[1756064030613,0.40777,4905.9,4904.8,0.2999]
[1756064030812,2.03757,4909.1,4905.2,0.2999]
[1756064030813,0.0685,4906.3,4905.2,0.2999]
[1756064031017,0.40773,4906.5,4905.4,0.4078]
[1756064031220,2.03757,4909.1,4905.3,0.6407]
[1756064031221,1.01888,4908.6,4906.1,0.40775]
[1756064031518,0.0203,4908.9,4905.2,2.65500041]
[1756064031519,0.0685,4905.3,4905.2,2.65500041]
[1756064031714,0.0685,4905.3,4904.6,0.6402]
[1756064032017,1.01954,4905.4,4904.6,0.2999]
[1756064032212,21.40501,4906.6,4904.1,0.09379811]
[1756064032213,0.40789,4904.5,4904.1,0.09379811]
[1756064032418,0.0685,4904.4,4904.2,0.2999]
[1756064032614,0.0685,4905.9,4904.2,0.2999]
[1756064032915,0.40785,4905.0,4904.2,0.2999]
[1756064033117,0.0685,4904.5,4904.2,0.2999]
[1756064033315,0.40784,4905.0,4904.3,0.2999]
[1756064033514,0.0685,4905.2,4904.3,0.70779]
[1756064033708,0.0685,4904.2,4904.1,0.09379811]
[1756064033913,0.0685,4904.7,4904.1,0.39369811]
[1756064034212,1.01954,4905.4,4904.2,0.2999]
[1756064034408,0.0685,4907.3,4905.1,0.6407]
[1756064034615,0.0685,4907.3,4905.8,0.6402]
[1756064034915,0.4762,4906.8,4905.9,0.3004]
[1756064035219,0.0685,4906.8,4906.0,0.40775]
[1756064035420,0.0685,4906.8,4905.9,0.3004]
[1756064035609,0.40774,4906.3,4905.2,0.40782]
[1756064035810,0.0685,4905.9,4905.0,0.2999]
[1756064036008,0.40778,4905.8,4905.0,0.2999]
[1756064036217,0.40781,4905.5,4905.0,0.2999]
[1756064036519,0.40778,4905.8,4905.1,0.6003]
[1756064036818,0.47629,4905.7,4905.1,0.6003]
[1756064037018,1.01931,4906.5,4905.1,0.2999]
[1756064037206,0.0685,4905.5,4904.5,0.3004]
[1756064037412,0.40782,4905.3,4904.5,0.3004]
[1756064037611,0.0685,4905.5,4904.6,0.3119]
[1756064037820,0.40784,4905.0,4904.6,0.3119]
[1756064038018,0.0685,4905.5,4904.8,0.3119]
[1756064038218,0.0283,4905.4,4904.8,0.3119]
[1756064038416,0.40782,4905.3,4904.6,2.59343178]
[1756064038719,0.0688,4904.2,4904.1,0.09379811]
[1756064039420,4.0688,4904.2,4904.1,0.09379811]
[1756064040121,0.0688,4904.2,4904.1,8.11e-06]
[1756064040617,0.47672,4904.1,4904.0,5e-06]
[1756064041523,20.39894,4903.5,4900.3,0.3223]
[1756064041727,0.40817,4901.1,4900.8,0.13285629]
[1756064041914,0.40824,4900.2,4899.9,0.3119]
[1756064042120,0.0688,4902.1,4899.8,0.3119]
[1756064042421,0.40814,4901.5,4900.7,0.3223]
[1756064042718,0.40814,4901.5,4899.0,1.04124]
[1756064042719,0.0688,4902.2,4900.3,0.3119]
[1756064042919,1.02033,4901.6,4900.0,0.6342]
[1756064043122,0.40821,4900.6,4900.0,0.6342]
[1756064043315,0.40819,4900.8,4900.0,0.6342]
[1756064043527,0.0688,4900.9,4900.1,0.3119]
[1756064043821,0.0688,4900.1,4899.2,0.6477]
[1756064044214,0.0688,4901.2,4899.5,0.3358]
[1756064044416,0.0688,4902.4,4900.0,0.97]
[1756064044720,0.0688,4901.6,4900.3,0.3119]
[1756064044922,1.02055,4900.5,4899.3,0.3119]
[1756064045123,0.4771,4899.5,4899.4,2.69784257]
[1756064045319,0.0688,4899.5,4898.7,0.3119]
[1756064045521,0.0688,4899.5,4898.8,0.6342]
[1756064045723,1.02092,4898.8,4897.0,29.6879]
[1756064046018,0.0688,4900.4,4897.5,0.3223]
[1756064046222,0.0688,4901.2,4898.5,0.6477]
[1756064046424,1.02024,4902.0,4898.9,0.3358]
[1756064046425,0.0688,4900.3,4898.9,0.3358]
[1756064046620,0.40831,4899.4,4899.1,0.3119]
[1756064046820,0.40842,4898.1,4898.0,0.3119]
[1756064047223,0.40842,4898.1,4895.8,21.3]
[1756064047224,0.0688,4900.6,4898.1,0.3223]
[1756064047421,20.40532,4901.9,4896.9,1.02129]
[1756064047422,1.02061,4900.2,4898.4,0.3119]
[1756064047627,0.0688,4899.9,4899.3,1.83691281]
[1756064047922,0.0688,4899.9,4899.3,1.21055281]
[1756064047923,0.40827,4899.8,4899.3,1.21055281]
[1756064048124,1.02049,4900.8,4899.3,1.21055281]
[1756064048321,0.40829,4899.6,4899.4,0.3119]
[1756064048523,29.376,4901.3,4899.5,0.3223]